bitfinex/quotes_BTCUSD_20240811
["timestamp","ask_amount","ask_price","bid_price","bid_amount"]
[1723415899016,0.0809,58903.0,58896.0,1.441933]
[1723415899210,0.0809,58903.0,58896.0,1.71880655]
[1723415899412,0.0809,58903.0,58896.0,1.23841063]
[1723415899814,0.0809,58903.0,58896.0,1.74180655]
[1723415900200,0.00926,58897.0,58896.0,1.74180655]
[1723415901037,0.00926,58897.0,58896.0,2.08125683]
[1723415901293,0.00926,58897.0,58896.0,1.74467583]
[1723415901460,0.00826,58897.0,58896.0,1.74467583]
[1723415902542,0.00826,58897.0,58896.0,1.45786091]
[1723415902671,0.00826,58897.0,58896.0,0.60890891]
[1723415902874,0.00826,58897.0,58896.0,1.11827991]
[1723415903311,0.00826,58897.0,58896.0,1.45786091]
[1723415903507,0.00826,58897.0,58896.0,1.45486091]
[1723415903715,0.00826,58897.0,58896.0,0.60590891]
[1723415903884,0.00826,58897.0,58896.0,0.61390891]
[1723415903885,0.01886807,58897.0,58896.0,0.61390891]
[1723415904086,0.01886807,58897.0,58896.0,0.60590891]
[1723415904293,0.50114307,58897.0,58896.0,0.35250891]
[1723415904497,0.67093007,58897.0,58896.0,0.15100356]
[1723415904724,0.67093007,58897.0,58896.0,0.14604486]
[1723415905048,0.16156807,58897.0,58896.0,0.14904486]
[1723415905198,0.16156807,58897.0,58896.0,0.2534]
[1723415905414,0.16156807,58897.0,58896.0,0.61097083]
[1723415905607,0.16156807,58897.0,58896.0,0.67148114]
[1723415905803,0.83474499,58897.0,58896.0,0.14202833]
[1723415906006,1.16371192,58897.0,58896.0,0.14202833]
[1723415906372,0.16152125,58897.0,58896.0,0.14202833]
[1723415906522,0.16152125,58897.0,58896.0,0.65139933]
[1723415906700,0.15096,58897.0,58896.0,0.14302833]
[1723415907246,0.15096,58897.0,58896.0,0.65239933]
[1723415907388,0.09046,58897.0,58896.0,0.65139933]
[1723415908050,0.09046,58897.0,58896.0,0.65039933]
[1723415908375,0.09046,58897.0,58896.0,0.99198033]
[1723415908552,0.09046,58897.0,58896.0,0.99098033]
[1723415908702,0.09046,58897.0,58896.0,0.65039028]
[1723415908888,0.09046,58897.0,58896.0,0.31181402]
[1723415909313,0.10096608,58897.0,58896.0,0.31181402]
[1723415909546,0.09046,58897.0,58896.0,0.31181402]
[1723415909748,0.09046,58897.0,58896.0,0.14402402]
[1723415909749,0.10096306,58897.0,58896.0,0.14402402]
[1723415909950,0.10096306,58897.0,58896.0,0.003]
[1723415910174,0.10096306,58897.0,58896.0,0.14402854]
[1723415910374,0.10096306,58897.0,58896.0,0.14302854]
[1723415910978,0.10096306,58897.0,58896.0,0.16602854]
[1723415911176,0.10096306,58897.0,58896.0,0.16402854]
[1723415911426,0.09046,58897.0,58896.0,0.14102854]
[1723415911764,0.10094911,58897.0,58896.0,0.14102854]
[1723415911964,0.27073611,58897.0,58896.0,0.14102854]
[1723415912165,0.10094911,58897.0,58896.0,0.16979]
[1723415912375,0.10094911,58897.0,58896.0,0.65040555]
[1723415912936,0.00826,58897.0,58896.0,0.98998655]
[1723415913152,0.00826,58897.0,58896.0,1.04949964]
[1723415913356,0.00826,58897.0,58896.0,1.02298655]
[1723415913643,0.00826,58897.0,58896.0,1.48835521]
[1723415914345,0.00826,58897.0,58896.0,1.83093621]
[1723415914563,0.00826,58897.0,58896.0,1.4912794]
[1723415914707,0.00826,58897.0,58896.0,1.48834792]
[1723415914908,0.0999113,58909.0,58905.0,0.848822]
[1723415914909,0.0199113,58909.0,58905.0,0.848822]
[1723415915129,0.0199113,58909.0,58905.0,1.02669437]
[1723415915394,0.0199113,58909.0,58905.0,1.25000207]
[1723415915523,0.0199113,58909.0,58905.0,1.74154034]
[1723415916299,0.0199113,58909.0,58905.0,1.13819642]
[1723415916428,0.14996,58906.0,58905.0,0.60590342]
[1723415916629,0.14996,58906.0,58905.0,0.66539983]
[1723415916861,0.16044911,58906.0,58905.0,0.2534]
[1723415917077,0.16044911,58906.0,58905.0,0.60691172]
[1723415917268,0.66973311,58906.0,58905.0,0.14201585]
[1723415917475,0.659244,58906.0,58905.0,0.14201585]
[1723415917642,0.659244,58906.0,58905.0,0.14101585]
[1723415918011,0.659244,58906.0,58905.0,1.07447385]
[1723415918012,0.01893559,58906.0,58905.0,1.07447385]
[1723415918145,0.01893559,58906.0,58905.0,1.24423785]
[1723415918345,0.00826,58906.0,58905.0,1.35502925]
[1723415918553,0.0199113,58909.0,58908.0,0.84878]
[1723415918779,0.0199113,58909.0,58908.0,1.85583674]
[1723415918986,0.0199113,58909.0,58908.0,1.91025032]
[1723415919687,0.0199113,58909.0,58908.0,1.57073832]
[1723415919900,0.0199113,58909.0,58908.0,1.57065581]
[1723415920405,0.0199113,58909.0,58908.0,0.35243882]
[1723415920406,0.0977113,58909.0,58908.0,0.35243882]
[1723415920631,0.2674643,58909.0,58908.0,0.36043882]
[1723415920864,0.0977113,58909.0,58908.0,0.36043882]
[1723415921066,0.10845148,58909.0,58908.0,0.36043882]
[1723415921269,0.3330643,58909.0,58908.0,0.35243882]
[1723415921488,0.3438023,58909.0,58908.0,0.35843882]
[1723415921688,1.18662922,58909.0,58908.0,0.41193814]
[1723415921896,1.52613522,58909.0,58908.0,0.14097553]
[1723415922972,1.0228143,58909.0,58908.0,0.14097553]
[1723415923239,0.1740493,58909.0,58908.0,0.14097553]
[1723415923418,0.1084493,58909.0,58908.0,0.14100514]
[1723415923622,0.1084493,58909.0,58908.0,0.35249791]
[1723415923801,0.1084493,58909.0,58908.0,0.52224068]
[1723415923999,0.0977113,58909.0,58908.0,0.52224068]
[1723415924260,0.0977113,58909.0,58908.0,0.35248468]
[1723415924544,0.10834299,58909.0,58908.0,0.52224068]
[1723415924760,0.0977113,58909.0,58908.0,0.88475268]
[1723415924992,0.4372173,58909.0,58908.0,0.35248468]
[1723415925227,0.4372173,58909.0,58908.0,0.14099387]
[1723415925228,0.9464763,58909.0,58908.0,0.14099387]
[1723415925496,1.46043686,58909.0,58908.0,0.14099387]
[1723415925741,0.78142486,58909.0,58908.0,0.1410187]
[1723415926246,1.12093086,58909.0,58908.0,0.1410187]
[1723415926486,0.10835094,58909.0,58908.0,0.1410187]
[1723415927233,0.03055094,58909.0,58908.0,0.88478494]
[1723415927455,0.03055094,58909.0,58908.0,0.52227294]
[1723415927701,0.03055094,58909.0,58908.0,0.35247536]
[1723415927702,0.1014113,58909.0,58908.0,0.35247536]
[1723415927942,1.17889122,58909.0,58908.0,0.35247536]
[1723415928233,0.68621801,58909.0,58908.0,0.14099014]
[1723415928500,0.34671201,58909.0,58908.0,0.14099014]
[1723415928732,0.11205901,58909.0,58908.0,0.35250161]
[1723415928986,0.11205901,58909.0,58908.0,0.35250732]
[1723415929210,0.1014113,58909.0,58908.0,0.35550732]
[1723415929432,0.0199113,58909.0,58908.0,0.86477532]
[1723415929697,0.03055509,58909.0,58908.0,0.54826332]
[1723415929918,0.0199113,58909.0,58908.0,0.88477532]
[1723415930146,0.0199113,58909.0,58908.0,0.37550732]
[1723415930370,0.0199113,58909.0,58908.0,0.52226332]
[1723415930637,0.0199113,58909.0,58908.0,0.35250732]
[1723415930915,0.0199113,58909.0,58908.0,0.35248013]
[1723415931615,0.0199113,58909.0,58908.0,0.35448013]
[1723415932076,0.0199113,58909.0,58908.0,0.35448958]
[1723415932318,0.03057407,58909.0,58908.0,0.35448958]
[1723415932577,0.03057407,58909.0,58908.0,0.35248958]
[1723415933964,0.10877407,58909.0,58908.0,0.35448958]
[1723415934443,0.10877407,58909.0,58908.0,0.3574899]
[1723415934917,0.0981113,58909.0,58908.0,0.3574899]
[1723415935138,0.10877267,58909.0,58908.0,0.3574899]
[1723415935367,0.84544659,58909.0,58908.0,0.3574899]
[1723415935638,2.23445859,58909.0,58908.0,0.14599596]
[1723415935850,2.60042678,58909.0,58908.0,0.005]
[1723415936323,2.61042678,58909.0,58908.0,0.005]
[1723415937027,1.271413,58907.0,58906.0,0.0009086]
[1723415937286,2.21169011,58907.0,58906.0,0.0009086]
[1723415937549,2.22232057,58907.0,58906.0,0.0009086]
[1723415937802,2.65743857,58907.0,58906.0,0.0009086]
[1723415938052,2.65759493,58907.0,58906.0,0.0009086]
[1723415938322,2.64759493,58907.0,58906.0,0.0019086]
[1723415938607,2.63759681,58907.0,58906.0,0.0019086]
[1723415938826,2.75759681,58907.0,58906.0,0.0019086]
[1723415939315,2.72759681,58907.0,58906.0,0.0019086]
[1723415939541,2.38807881,58907.0,58906.0,0.0029086]
[1723415939785,1.63807881,58907.0,58906.0,0.0029086]
[1723415940012,2.35807881,58907.0,58906.0,0.0029086]
[1723415940240,2.35807881,58907.0,58906.0,0.0019086]
[1723415940467,2.35807881,58907.0,58906.0,0.0029086]
[1723415940702,2.35807881,58907.0,58906.0,0.0019086]
[1723415940703,2.72754037,58907.0,58906.0,0.0019086]
[1723415940938,2.72754037,58907.0,58889.0,0.00124802]
[1723415940939,1.340056,58890.0,58889.0,0.00124802]
[1723415941210,2.67189737,58890.0,58889.0,0.00124802]
[1723415941435,2.67189737,58890.0,58873.0,0.0009097]
[1723415941436,0.99067,58874.0,58873.0,0.0009097]
[1723415941669,0.0773,58880.0,58875.0,0.169849]
[1723415941935,0.00340335,58884.0,58877.0,0.169845]
[1723415942195,0.18025977,58879.0,58878.0,0.14107092]
[1723415942475,0.18025977,58879.0,58876.0,0.2534]
[1723415942476,0.01042077,58879.0,58876.0,0.2534]
[1723415942943,0.169837,58880.0,58876.0,0.2534]
[1723415943427,0.00864353,58879.0,58876.0,0.2534]
[1723415943898,0.169845,58877.0,58876.0,0.2534]
[1723415944144,0.33967,58881.0,58873.0,0.0009097]
[1723415944381,0.00862923,58877.0,58875.0,0.16985]
[1723415944600,0.00862923,58876.0,58873.0,0.1707647]
[1723415944864,0.17324035,58880.0,58873.0,0.1707647]
[1723415945190,0.339647,58885.0,58873.0,0.0009097]
[1723415945191,0.169854,58874.0,58873.0,0.0009097]
[1723415945456,0.51296535,58874.0,58873.0,0.0009097]
[1723415945725,0.00862923,58874.0,58873.0,0.0009097]
[1723415945974,0.00862923,58874.0,58873.0,0.5104807]
[1723415946392,0.252141,58879.0,58873.0,0.31184215]
[1723415946395,0.252141,58879.0,58873.0,0.1707667]
[1723415946396,0.247141,58879.0,58873.0,0.1707667]
[1723415946612,0.247141,58879.0,58875.0,0.002]
[1723415946613,0.00861909,58878.0,58875.0,0.002]
[1723415946835,0.00861909,58878.0,58874.0,0.423253]
[1723415947049,0.17846209,58878.0,58874.0,0.2534]
[1723415947262,0.00861909,58878.0,58876.0,0.169847]
[1723415947696,0.169832,58882.0,58876.0,0.169847]
[1723415947983,0.00861909,58877.0,58876.0,0.509543]
[1723415948251,0.005,58878.0,58877.0,0.872227]
[1723415948519,0.005,58878.0,58877.0,1.61679221]
[1723415948520,0.008,58878.0,58877.0,1.61679221]
[1723415948787,0.003,58878.0,58877.0,1.69559221]
[1723415949064,0.0199113,58909.0,58891.0,0.169802]
[1723415949065,0.169788,58897.0,58891.0,0.169802]
[1723415949330,0.339561,58900.0,58893.0,0.2534]
[1723415949587,0.509389,58894.0,58893.0,0.2534]
[1723415949835,0.24201492,58901.0,58893.0,0.2534]
[1723415949836,0.03,58898.0,58893.0,0.2534]
[1723415950130,0.00861909,58894.0,58893.0,0.2534]
[1723415950390,0.0802,58907.0,58893.0,0.3373]
[1723415950645,0.00861909,58906.0,58902.0,0.423172]
[1723415950885,0.169765,58905.0,58902.0,0.2534]
[1723415951417,0.25336435,58907.0,58902.0,0.2534]
[1723415951601,0.00861909,58904.0,58902.0,0.2534]
[1723415951866,0.0199113,58909.0,58902.0,0.2534]
[1723415951867,0.004,58906.0,58902.0,0.2534]
[1723415952114,0.00861909,58903.0,58902.0,0.2534]
[1723415952387,0.004,58906.0,58902.0,0.2534]
[1723415952629,0.004,58906.0,58902.0,0.423173]
[1723415952948,0.00861909,58905.0,58903.0,0.023]
[1723415953137,0.004,58906.0,58903.0,0.19277]
[1723415953368,0.00861909,58904.0,58903.0,0.19277]
[1723415953608,0.0199113,58909.0,58904.0,0.5093]
[1723415953609,0.003,58905.0,58904.0,0.5093]
[1723415953864,0.0199113,58909.0,58906.0,0.169761]
[1723415953865,0.013,58907.0,58906.0,0.169761]
[1723415954100,0.013,58907.0,58906.0,0.140994]
[1723415954370,0.013,58907.0,58904.0,0.2534]
[1723415954371,0.169762,58906.0,58904.0,0.2534]
[1723415954606,0.169762,58906.0,58898.0,0.339568]
[1723415954607,0.00840335,58906.0,58903.0,0.001]
[1723415954846,0.340535,58904.0,58903.0,0.011]
[1723415955092,0.340535,58904.0,58897.0,0.2534]
[1723415955093,0.509355,58898.0,58897.0,0.2534]
[1723415955307,0.0664,58903.0,58890.0,0.2534]
[1723415955506,0.0825,58894.0,58890.0,0.2534]
[1723415955914,0.007826,58907.0,58892.0,0.849008]
[1723415955915,0.00873919,58893.0,58892.0,0.849008]
[1723415956120,0.0825,58900.0,58894.0,0.33959]
[1723415956333,0.0825,58900.0,58896.0,0.16979]
[1723415956545,0.007826,58907.0,58898.0,0.509355]
[1723415956546,0.00873919,58899.0,58898.0,0.509355]
[1723415956784,0.00873919,58899.0,58898.0,0.56421682]
[1723415956994,0.003,58904.0,58899.0,0.169779]
[1723415957201,0.00885852,58903.0,58900.0,0.31080982]
[1723415957413,0.000826,58907.0,58902.0,0.1388]
[1723415957626,0.000826,58907.0,58906.0,0.423161]
[1723415958048,0.000826,58907.0,58906.0,0.5641594]
[1723415958266,0.000826,58907.0,58906.0,1.43002032]
[1723415958480,0.000826,58907.0,58906.0,1.62854492]
[1723415958689,0.000826,58907.0,58906.0,0.92667413]
[1723415959580,0.000826,58907.0,58906.0,1.26619713]
[1723415959788,0.000826,58907.0,58906.0,1.26619585]
[1723415959989,0.000826,58907.0,58906.0,0.92767285]
[1723415960237,0.000826,58907.0,58906.0,0.59114985]
[1723415960481,0.000826,58907.0,58906.0,0.39438885]
[1723415960691,0.000826,58907.0,58906.0,0.90667285]
[1723415960893,0.000826,58907.0,58906.0,0.90767285]
[1723415961108,0.000826,58907.0,58906.0,0.90467285]
[1723415961352,0.001826,58907.0,58906.0,1.41401077]
[1723415961587,0.001826,58907.0,58906.0,0.93367477]
[1723415961797,0.001826,58907.0,58906.0,0.93167477]
[1723415962002,0.001826,58907.0,58906.0,1.27119777]
[1723415962206,0.001826,58907.0,58906.0,1.85643569]
[1723415962407,0.001826,58907.0,58906.0,1.96643569]
[1723415962842,0.001826,58907.0,58906.0,1.95643569]
[1723415963057,0.001826,58907.0,58906.0,1.96043569]
[1723415963255,0.001826,58907.0,58906.0,1.95643569]
[1723415963665,0.002826,58907.0,58906.0,1.96343569]
[1723415964075,0.002826,58907.0,58906.0,1.68881269]
[1723415964719,0.002826,58907.0,58906.0,0.91567477]
[1723415964925,0.002826,58907.0,58906.0,0.91567103]
[1723415965132,0.002826,58907.0,58906.0,1.25519403]
[1723415965774,0.002826,58907.0,58906.0,0.91567103]
[1723415966402,0.002826,58907.0,58906.0,0.93867103]
[1723415966834,0.002826,58907.0,58906.0,1.27819403]
[1723415967025,0.002826,58907.0,58906.0,0.93867103]
[1723415967264,0.002826,58907.0,58906.0,1.27819403]
[1723415967469,0.002826,58907.0,58906.0,0.93867103]
[1723415967678,0.002826,58907.0,58906.0,1.27819403]
[1723415968350,0.002826,58907.0,58906.0,0.40638703]
[1723415968558,0.002826,58907.0,58906.0,1.25519403]
[1723415968761,0.002826,58907.0,58906.0,1.27819298]
[1723415969401,0.002826,58907.0,58906.0,1.61771401]
[1723415969576,0.002826,58907.0,58906.0,1.27819101]
[1723415969782,0.002826,58907.0,58906.0,1.61771401]
[1723415969955,0.002826,58907.0,58906.0,1.83042893]
[1723415971142,0.002826,58907.0,58906.0,1.32709101]
[1723415971443,0.002826,58907.0,58906.0,0.98756801]
[1723415971737,0.002826,58907.0,58906.0,0.88756801]
[1723415971956,0.082526,58907.0,58906.0,0.35528401]
[1723415972170,0.002826,58907.0,58906.0,1.20409101]
[1723415972371,0.002826,58907.0,58906.0,1.39091359]
[1723415972372,0.01180795,58907.0,58906.0,1.39091359]
[1723415972575,0.002826,58907.0,58906.0,1.22709867]
[1723415972999,0.002826,58907.0,58906.0,0.88757567]
[1723415973633,0.002826,58907.0,58906.0,1.49091359]
[1723415974040,0.002826,58907.0,58906.0,1.83043659]
[1723415974276,0.002826,58907.0,58906.0,1.49091359]
[1723415974692,0.148026,58907.0,58906.0,0.15299167]
[1723415974903,0.148026,58907.0,58906.0,0.66227567]
[1723415975128,0.15517339,58907.0,58906.0,0.181761]
[1723415975339,0.4834,58922.0,58913.0,0.01]
[1723415975340,0.169739,58914.0,58913.0,0.01]
[1723415976010,0.169744,58912.0,58911.0,0.03]
[1723415976203,0.169741,58914.0,58913.0,0.01]
[1723415976414,0.169747,58912.0,58910.0,0.03]
[1723415976636,0.339464,58917.0,58912.0,0.01]
[1723415976637,0.169744,58913.0,58912.0,0.01]
[1723415976892,0.342478,58914.0,58906.0,0.2093]
[1723415976893,0.339495,58911.0,58906.0,0.2093]
[1723415977089,0.4734,58922.0,58906.0,0.2093]
[1723415977291,0.509277,58907.0,58906.0,0.2023]
[1723415977492,0.34049,58912.0,58911.0,0.01]
[1723415977711,0.16381492,58921.0,58911.0,0.01]
[1723415977712,0.170739,58914.0,58913.0,0.02]
[1723415977916,0.169741,58913.0,58912.0,0.01]
[1723415978143,0.84381492,58921.0,58915.0,0.01]
[1723415978144,0.339467,58916.0,58915.0,0.01]
[1723415978343,0.339467,58916.0,58912.0,0.03]
[1723415978558,0.169741,58913.0,58912.0,0.03]
[1723415978759,0.480367,58916.0,58915.0,0.01]
[1723415978962,0.1409,58916.0,58915.0,0.01]
[1723415979170,0.1409,58916.0,58915.0,0.03]
[1723415979171,0.000826,58916.0,58915.0,0.03]
[1723415979377,0.000826,58916.0,58915.0,0.2323]
[1723415979794,0.000826,58916.0,58915.0,0.36328951]
[1723415980006,0.000826,58916.0,58915.0,0.2323]
[1723415980654,0.014826,58916.0,58915.0,0.35328733]
[1723415980881,0.175559,58916.0,58915.0,0.2023]
[1723415981085,0.175559,58916.0,58915.0,0.2123]
[1723415981499,0.007826,58916.0,58915.0,0.2323]
[1723415981697,0.007826,58916.0,58915.0,0.2553]
[1723415981907,0.005826,58916.0,58915.0,0.39628674]
[1723415982337,0.005826,58916.0,58915.0,0.37328674]
[1723415982555,0.000826,58916.0,58915.0,0.37328674]
[1723415982979,0.01028419,58916.0,58915.0,0.37328674]
[1723415983213,0.002826,58916.0,58915.0,0.2123]
[1723415983394,0.00828419,58916.0,58915.0,0.2323]
[1723415983665,0.00828419,58916.0,58915.0,0.37328545]
[1723415983869,0.00828419,58916.0,58915.0,0.37828545]
[1723415984076,0.00828419,58916.0,58915.0,0.37528545]
[1723415984299,0.00828419,58916.0,58915.0,0.37328545]
[1723415984561,0.00828419,58916.0,58915.0,0.37628545]
[1723415984785,0.00828419,58916.0,58915.0,0.37428245]
[1723415984996,0.00828419,58916.0,58915.0,0.37728245]
[1723415985422,0.00828419,58916.0,58915.0,0.37428245]
[1723415985624,0.00828419,58916.0,58915.0,0.37628245]
[1723415985845,0.00828419,58916.0,58915.0,0.37528245]
[1723415986296,0.58308319,58916.0,58915.0,0.34728245]
[1723415986509,0.58308319,58916.0,58915.0,0.35728245]
[1723415986717,0.58308319,58916.0,58915.0,0.35528245]
[1723415986927,0.24361719,58916.0,58915.0,0.35628245]
[1723415987137,0.00828419,58916.0,58915.0,0.35628245]
[1723415987315,0.00828419,58916.0,58915.0,0.36128245]
[1723415987547,0.00828419,58916.0,58915.0,0.37628245]
[1723415987746,0.00828419,58916.0,58915.0,0.37728245]
[1723415987951,0.00828419,58916.0,58915.0,0.37428245]
[1723415988160,0.00828419,58916.0,58915.0,0.37328245]
[1723415988565,0.01228419,58916.0,58915.0,0.37328245]
[1723415988773,0.01228419,58916.0,58915.0,0.71275445]
[1723415988984,0.01228419,58916.0,58915.0,0.90549045]
[1723415989182,0.01228419,58916.0,58915.0,1.24496245]
[1723415989385,0.004826,58916.0,58915.0,1.24496245]
[1723415989595,0.005826,58916.0,58915.0,1.25513917]
[1723415990018,0.004826,58916.0,58915.0,1.25513917]
[1723415990229,0.0656,58929.0,58915.0,1.25513917]
[1723415990230,0.0772,58939.0,58937.0,0.01]
[1723415990470,0.49107874,58942.0,58941.0,0.538983]
[1723415990685,0.05027942,58962.0,58948.0,0.2223]
[1723415990686,0.49107874,58953.0,58948.0,0.2223]
[1723415990958,0.47825292,58949.0,58948.0,0.14092184]
[1723415991206,0.252055,58943.0,58942.0,0.2123]
[1723415991488,0.75517992,58943.0,58942.0,0.2123]
[1723415991731,0.0824,58943.0,58942.0,0.35322669]
[1723415991970,0.58552492,58943.0,58942.0,0.34322669]
[1723415992297,0.58552492,58943.0,58942.0,0.14092669]
[1723415992298,1.49609992,58943.0,58942.0,0.14092669]
[1723415992505,0.169682,58934.0,58930.0,0.01]
[1723415992738,0.509062,58932.0,58931.0,0.14094675]
[1723415993216,0.169695,58930.0,58928.0,0.01]
[1723415993467,0.339375,58932.0,58927.0,0.29414646]
[1723415993468,0.231995,58929.0,58927.0,0.29414646]
[1723415993691,0.231995,58929.0,58917.0,0.01022762]
[1723415993692,0.22611492,58929.0,58917.0,0.01022762]
[1723415993965,0.0824,58928.0,58918.0,0.1509765]
[1723415994218,0.24621492,58928.0,58927.0,0.09184646]
[1723415994448,0.24621492,58928.0,58922.0,0.01]
[1723415994697,0.24621492,58928.0,58925.0,0.02]
[1723415994698,0.0824,58928.0,58925.0,0.02]
[1723415994961,0.252098,58928.0,58927.0,0.011]
[1723415995216,0.591495,58928.0,58927.0,0.01]
[1723415995451,0.591495,58928.0,58925.0,0.02]
[1723415995452,0.169704,58926.0,58925.0,0.03]
[1723415996213,0.258101,58928.0,58925.0,0.03]
[1723415996425,0.597498,58928.0,58927.0,0.01]
[1723415996675,0.262098,58928.0,58927.0,0.01]
[1723415997112,0.169707,58925.0,58924.0,0.01]
[1723415997566,0.339449,58919.0,58917.0,0.01022762]
[1723415997824,0.0824,58920.0,58919.0,0.01]
[1723415998052,0.252121,58920.0,58919.0,0.01]
[1723415998476,0.0824,58920.0,58919.0,0.01]
[1723415998685,0.169727,58918.0,58917.0,0.01022762]
[1723415998891,0.509181,58918.0,58917.0,0.14720509]
[1723415999094,0.170724,58919.0,58917.0,0.00622762]
[1723415999295,0.509181,58918.0,58917.0,0.00022762]
[1723416000134,0.169727,58918.0,58917.0,0.00022762]
[1723416000345,0.16381492,58920.0,58917.0,0.00022762]
[1723416000563,0.414531,58923.0,58917.0,0.00022762]
[1723416000564,0.509181,58918.0,58917.0,0.00022762]
[1723416000781,1.48860392,58918.0,58917.0,0.00022762]
[1723416000994,2.14960392,58918.0,58917.0,0.00322762]
[1723416001176,0.81169592,58918.0,58917.0,0.01122762]
[1723416001458,0.81069592,58918.0,58917.0,0.00822762]
[1723416001669,0.81069592,58918.0,58917.0,0.01822762]
[1723416001670,0.47884817,58918.0,58917.0,0.01822762]
[1723416002082,0.65348725,58918.0,58917.0,0.01022762]
[1723416002302,0.08270625,58918.0,58917.0,0.09207408]
[1723416002528,0.01660625,58918.0,58917.0,0.96172408]
[1723416002734,0.01660625,58918.0,58917.0,0.25305105]
[1723416002735,0.00760625,58918.0,58917.0,0.25305105]
[1723416002936,0.169713,58923.0,58922.0,0.01]
[1723416003139,0.16971,58924.0,58923.0,0.02]
[1723416003795,0.169712,58924.0,58920.0,0.03]
[1723416004000,0.16381492,58923.0,58917.0,0.08207408]
[1723416004213,0.004,58918.0,58917.0,0.09207408]
[1723416004419,1.08984992,58918.0,58917.0,0.00022762]
[1723416004625,1.15494992,58918.0,58917.0,0.00022762]
[1723416004844,0.0774,58918.0,58917.0,0.09207408]
[1723416005074,0.247127,58918.0,58917.0,0.09207408]
[1723416005285,0.01,58924.0,58917.0,0.09207408]
[1723416005286,0.01,58924.0,58919.0,0.01]
[1723416005519,0.01,58924.0,58923.0,0.48385946]
[1723416005724,0.01,58924.0,58923.0,0.45513278]
[1723416005725,0.006,58924.0,58923.0,0.45513278]
[1723416006386,0.4734,58935.0,58934.0,0.03]
[1723416006595,0.169676,58936.0,58935.0,0.01]
[1723416006799,0.169678,58935.0,58934.0,0.01]
[1723416007004,0.16381492,58935.0,58926.0,0.01]
[1723416007212,0.247101,58927.0,58926.0,0.01]
[1723416007457,0.16381492,58934.0,58928.0,0.02]
[1723416007458,0.0774,58933.0,58928.0,0.02]
[1723416007668,0.339374,58932.0,58930.0,0.08184646]
[1723416007882,0.24121492,58933.0,58930.0,0.08184646]
[1723416007883,0.509068,58931.0,58930.0,0.08184646]
[1723416008085,0.509068,58931.0,58926.0,0.02]
[1723416008086,0.169701,58927.0,58926.0,0.01]
[1723416008291,0.16971,58924.0,58923.0,0.28414646]
[1723416008496,0.16971,58924.0,58923.0,0.08184646]
[1723416008750,0.16381492,58927.0,58925.0,0.01]
[1723416008963,0.169707,58925.0,58923.0,0.08184646]
[1723416009166,0.41677,58933.0,58932.0,0.01]
[1723416009167,0.0774,58933.0,58932.0,0.01]
[1723416009377,0.41089892,58933.0,58932.0,0.01]
[1723416009579,0.169681,58934.0,58933.0,0.01]
[1723416009779,0.509043,58934.0,58933.0,0.01]
[1723416010276,0.340144,58942.0,58929.0,0.08184646]
[1723416010277,0.000826,58942.0,58941.0,0.03]
[1723416010479,0.0026229,58942.0,58941.0,0.67991955]
[1723416011096,0.0026229,58942.0,58941.0,0.67989854]
[1723416011303,0.0026229,58942.0,58941.0,1.04222054]
[1723416011555,0.0056229,58942.0,58941.0,0.70289854]
[1723416011768,0.0106229,58942.0,58941.0,0.538983]
[1723416011984,0.0076229,58942.0,58941.0,0.7029013]
[1723416012409,0.0076229,58942.0,58941.0,0.3635793]
[1723416012618,0.0076229,58942.0,58941.0,0.1729183]
[1723416012820,0.0076229,58942.0,58941.0,0.032]
[1723416013026,0.01512695,58942.0,58941.0,0.563983]
[1723416013243,0.415563,58952.0,58951.0,0.01]
[1723416013445,0.169635,58950.0,58949.0,0.01]
[1723416013648,0.169635,58950.0,58949.0,0.03]
[1723416013957,0.17713905,58950.0,58949.0,0.02]
[1723416014200,0.17713905,58950.0,58948.0,0.01]
[1723416014201,0.169638,58949.0,58948.0,0.01]
[1723416014398,0.169638,58949.0,58948.0,0.03]
[1723416014820,0.17714205,58949.0,58948.0,0.03]
[1723416015259,0.00750405,58949.0,58948.0,0.03]
[1723416016006,0.002,58950.0,58949.0,0.538914]
[1723416016242,0.002,58950.0,58949.0,0.199638]
[1723416016447,0.00825,58956.0,58955.0,0.01]
[1723416016651,0.00825,58956.0,58955.0,0.2323]
[1723416017275,0.595504,58956.0,58955.0,0.01]
[1723416017393,0.256268,58956.0,58955.0,0.01]
[1723416017601,0.00825,58956.0,58955.0,0.3082]
[1723416017800,0.00825,58956.0,58955.0,1.218902]
[1723416018021,0.00825,58956.0,58955.0,1.241902]
[1723416018376,0.00825,58956.0,58955.0,1.5465967]
[1723416018377,0.01825,58956.0,58955.0,1.5465967]
[1723416018787,0.01825,58956.0,58955.0,1.8858377]
[1723416018990,0.02025,58956.0,58955.0,1.54658916]
[1723416019202,0.02025,58956.0,58955.0,0.54279224]
[1723416019408,0.02025,58956.0,58948.0,0.1385]
[1723416019409,0.0784,58949.0,58948.0,0.01]
[1723416019641,0.08665,58956.0,58954.0,0.03]
[1723416019870,0.08665,58956.0,58955.0,0.40192]
[1723416019871,0.00825,58956.0,58955.0,0.40192]
[1723416020122,0.00925,58956.0,58955.0,0.82900746]
[1723416020336,0.00925,58956.0,58955.0,1.40796338]
[1723416020551,0.00825,58956.0,58955.0,1.88208117]
[1723416020757,0.00825,58956.0,58955.0,2.01008117]
[1723416021014,0.00825,58956.0,58955.0,1.16278425]
[1723416021240,0.00825,58956.0,58955.0,0.58376646]
[1723416021648,0.00825,58956.0,58955.0,0.41714646]
[1723416021853,0.00825,58956.0,58955.0,0.92600746]
[1723416022184,0.00825,58956.0,58955.0,2.02007515]
[1723416022305,0.00825,58956.0,58955.0,2.00807515]
[1723416022932,0.00825,58956.0,58955.0,2.00507515]
[1723416023335,0.00825,58956.0,58955.0,2.00907515]
[1723416023612,0.0087486,58965.0,58964.0,0.199595]
[1723416023843,0.6251246,58965.0,58964.0,0.01]
[1723416024060,0.1163486,58965.0,58962.0,0.01]
[1723416024262,0.169598,58963.0,58962.0,0.01]
[1723416024469,0.339191,58964.0,58961.0,0.01]
[1723416024667,0.339191,58964.0,58959.0,0.03]
[1723416024668,0.00801001,58963.0,58959.0,0.03]
[1723416024867,0.00801001,58963.0,58958.0,0.01]
[1723416024868,0.339218,58959.0,58958.0,0.01]